fUSD/lending_fUSD_20260423
["ID","MTS","AMOUNT","RATE_DAILY","PERIOD"]
[421049964,1776951537410,-1142.07085177,0.00038863,2]
[421049965,1776951537420,-308.21314632,0.00038863,2]
[421049966,1776951537429,-386.60559517,0.00038863,2]
[421049967,1776951537439,-860.57058813,0.00038863,2]
[421049968,1776951537448,-461.80060393,0.00038863,2]
[421049969,1776951537458,-300.0,0.00038863,2]
[421049970,1776951537467,-300.0,0.00038863,2]
[421049971,1776951537476,-303.51809319,0.00038863,2]
[421049972,1776951537485,-522.3889219,0.00038863,2]
[421049973,1776951537495,-300.0,0.00038863,2]
[421049974,1776951537504,-337.41426314,0.00038863,2]
[421049975,1776951537513,-300.0,0.00038863,2]
[421049976,1776951537523,-361.51350636,0.00038863,2]
[421049977,1776951537533,-601.78872659,0.00038863,2]
[421049978,1776951537541,-300.0,0.00038863,2]
[421049979,1776951537549,-300.0,0.00038863,2]
[421049980,1776951537558,-1062.17746749,0.00038863,2]
[421049981,1776951537568,-1185.91643579,0.00038863,2]
[421049982,1776951537577,-421.35727873,0.00038863,2]
[421049983,1776951537587,-722.85413703,0.00038863,2]
[421049984,1776951537596,-300.0,0.00038863,2]
[421049985,1776951537606,-576.81419276,0.00038863,2]
[421049986,1776951537615,-843.07453674,0.00038863,2]
[421049987,1776951537625,-1142.07085176,0.00038863,2]
[421049988,1776951537634,-1147.42745092,0.00038863,2]
[421049989,1776951537644,-404.69079091,0.00038863,2]
[421049990,1776951537653,-522.3889219,0.00038863,2]
[421049991,1776951537663,-300.0,0.00038863,2]
[421049992,1776951537672,-300.0,0.00038863,2]
[421049993,1776951537681,-300.0,0.00038863,2]
[421049994,1776951537691,-300.0,0.00038863,2]
[421049995,1776951537700,-300.0,0.00038863,2]
[421049996,1776951537710,-346.93523618,0.0003888,7]
[421049997,1776951537931,-7880.09031202,0.0003888,60]
[421049998,1776951537941,-304.76937357,0.000389,30]
[421049999,1776951537951,-243.3159336,0.000389,60]
[421050000,1776951537960,-1609.21,0.000389,60]
[421050001,1776951537970,-1820.393,0.000389,60]
[421050002,1776951537979,-1820.393,0.000389,60]
[421050003,1776951537989,-1820.39,0.000389,30]
[421050004,1776951537998,-1583.39285687,0.00038904,5]
[421050005,1776951538007,-208.0,0.0003891,30]
[421050006,1776951538016,-286.12101266,0.00038938,30]
[421050007,1776951538026,-482.87121667,0.00038938,30]
[421050008,1776951538035,-3159.0,0.0003896,21]
[421050009,1776951538045,-6000.0,0.00039,21]
[421050010,1776951538055,-250.0,0.00039,7]
[421050011,1776951538065,-10000.0,0.00039,7]
[421050012,1776951538074,-31125.07221461,0.00039,2]
[421050013,1776951538083,-150.94623784,0.00039,5]
[421050014,1776951538093,-2629.52419621,0.00039,10]
[421050015,1776951538102,-36817.85473798,0.00039,10]
[421050016,1776951538111,-10000.0,0.00039,30]
[421050017,1776951538121,-1000.0,0.00039,30]
[421050018,1776951538130,-1002.0,0.00039,30]
[421050019,1776951538139,-1000.0,0.00039,30]
[421050020,1776951538148,-1000.0,0.00039,30]
[421050021,1776951538158,-20845.53183598,0.00039,30]
[421050022,1776951538167,-10000.0,0.00039,30]
[421050023,1776951538176,-9794.28141431,0.00039,5]
[421050024,1776951538186,-30000.0,0.00039,30]
[421050025,1776951538195,-900.0,0.00039,2]
[421050026,1776951538205,-1319.34,0.0003902,112]
[421050027,1776951538215,-701.63228169,0.00039041,60]
[421050028,1776951538224,-564.8831674,0.00039041,60]
[421050029,1776951538233,-436.57263041,0.00039041,60]
[421050030,1776951538242,-342.86241059,0.00039041,60]
[421050031,1776951538251,-341.06657484,0.00039041,60]
[421050032,1776951538261,-505.0,0.00039077,24]
[421050033,1776951538270,-1286.61,0.000391,30]
[421050034,1776951538280,-1286.61,0.000391,30]
[421050035,1776951538289,-2500.0,0.000391,30]
[421050036,1776951538298,-1596.80537406,0.00039122,2]
[421050037,1776951538308,-1596.80537406,0.00039122,2]
[421050038,1776951538319,-1596.80537406,0.00039122,2]
[421050039,1776951538328,-250.0,0.00039197,7]
[421050040,1776951538337,-250.0,0.00039197,7]
[421050041,1776951538346,-250.0,0.00039197,7]
[421050042,1776951538356,-250.0,0.00039197,7]
[421050043,1776951538366,-250.0,0.00039197,7]
[421050044,1776951538375,-250.0,0.00039197,7]
[421050045,1776951538384,-500.0,0.00039198,30]
[421050046,1776951538393,-500.0,0.00039198,30]
[421050047,1776951538402,-500.0,0.00039198,30]
[421050048,1776951538411,-500.0,0.00039198,30]
[421050049,1776951538420,-500.0,0.00039198,30]
[421050050,1776951538429,-501.39199407,0.00039198,30]
[421050051,1776951538439,-3085.98684498,0.00039207,2]
[421050052,1776951538448,-286.12101266,0.00039212,30]
[421050053,1776951538458,-482.87121667,0.00039212,30]
[421050054,1776951538467,-825.0,0.00039271,90]
[421050055,1776951538476,-250.0,0.00039278,80]
[421050056,1776951538485,-2500.0,0.000394,30]
[421050057,1776951538494,-477.94,0.00039431,7]
[421050058,1776951538504,-216.92,0.00039433,7]
[421050059,1776951538513,-638.3,0.00039434,7]
[421050060,1776951538523,-568.19,0.00039435,7]
[421050061,1776951538532,-392.62,0.00039435,7]
[421050062,1776951538541,-568.19,0.00039435,7]
[421050063,1776951538550,-568.19,0.00039435,7]
[421050064,1776951538559,-570.44,0.00039435,7]
[421050065,1776951538568,-638.19,0.00039435,7]
[421050066,1776951538577,-570.18,0.00039435,7]
[421050067,1776951538587,-638.3,0.00039435,7]
[421050068,1776951538596,-500.97157066,0.00039443,2]
[421050069,1776951538606,-157.14763931,0.00039443,2]
[421050070,1776951538615,-430570.5062,0.00039444,7]
[421050071,1776951538625,-25000.0,0.00039485,7]
[421050072,1776951538634,-286.12101266,0.00039486,30]
[421050073,1776951538643,-482.87121667,0.00039486,30]
[421050074,1776951538653,-8635.78312969,0.000395,21]
[421050075,1776951538662,-1000.0,0.000395,30]
[421050076,1776951538671,-223.8973863,0.000395,60]
[421050077,1776951538680,-3000.0,0.0003953,15]
[421050078,1776951538689,-4000.0,0.0003963,21]
[421050079,1776951538699,-161.7324304,0.0003969,30]
[421050080,1776951538708,-2500.0,0.000397,30]
[421050081,1776951538717,-157.14763931,0.00039717,2]
[421050082,1776951538726,-319.31213788,0.00039726,30]
[421050083,1776951538735,-480.1793156,0.00039726,30]
[421050084,1776951538745,-150.0,0.00039726,30]
[421050085,1776951538755,-154.0,0.00039726,30]
[421050086,1776951538764,-654.0,0.00039726,30]
[421050087,1776951538773,-576.0,0.00039726,30]
[421050088,1776951538783,-646.0,0.00039726,30]
[421050089,1776951538792,-594.0,0.00039726,30]
[421050090,1776951538801,-467.0,0.00039726,30]
[421050091,1776951538811,-662.0,0.00039726,30]
[421050092,1776951538820,-298.0,0.00039726,30]
[421050093,1776951538829,-531.0,0.00039726,30]
[421050094,1776951538838,-10000.0,0.0003975,30]
[421050095,1776951538848,-286.12101266,0.0003976,30]
[421050096,1776951538858,-482.87121667,0.0003976,30]
[421050097,1776951538868,-1006.0139,0.000398,60]
[421050098,1776951538877,-1306.375,0.000398,60]
[421050099,1776951538887,-661.765,0.000398,60]
[421050100,1776951538896,-1006.0139,0.000398,30]
[421050101,1776951538904,-308.1087,0.000398,60]
[421050102,1776951538914,-1918.9269,0.000398,60]
[421050103,1776951538923,-1654.903,0.000398,30]
[421050104,1776951538932,-150.0,0.00039834,2]
[421050105,1776951538941,-453.27393211,0.00039886,90]
[421050106,1776951538951,-150.0,0.000399,90]
[421050107,1776951538960,-505.0,0.00039929,25]
[421050108,1776951538970,-75008.48243999,0.0003997,2]
[421050109,1776951538979,-460.0,0.00039986,90]
[421050110,1776951538989,-2000.0,0.00039988,31]
[421050111,1776951538998,-157.14763931,0.00039991,2]
[421050112,1776951539008,-100000.0,0.0004,30]
[421050113,1776951539018,-10127.89994326,0.0004,7]
[421050114,1776951539027,-40167.93110863,0.0004,2]
[421050115,1776951539037,-11662.84906123,0.0004,10]
[421050116,1776951539046,-55308.19948836,0.0004,7]
[421050117,1776951539055,-3000.0,0.0004,7]
[421050118,1776951539065,-5000.0,0.0004,21]
[421050119,1776951539075,-250.0,0.0004,7]
[421050120,1776951539084,-250.0,0.0004,7]
[421050121,1776951539093,-250.0,0.0004,7]
[421050122,1776951539103,-250.0,0.0004,7]
[421050123,1776951539113,-250.0,0.0004,7]
[421050124,1776951539122,-199.0,0.0004,7]
[421050125,1776951539131,-23145.0,0.0004,7]
[421050126,1776951539141,-164.10886755,0.0004,8]
[421050127,1776951539150,-423.15905854,0.0004,2]
[421050128,1776951539159,-433.30775223,0.0004,7]
[421050129,1776951539169,-367.06614562,0.0004,3]
[421050130,1776951539178,-1005.95109508,0.0004,7]
[421050131,1776951539187,-1050.89097043,0.0004,20]
[421050132,1776951539196,-394.67680826,0.0004,2]
[421050133,1776951539205,-288.7818056,0.0004,2]
[421050134,1776951539214,-967.09401599,0.0004,2]
[421050135,1776951539223,-361.02306541,0.0004,15]
[421050136,1776951539232,-318.20625421,0.0004,2]
[421050137,1776951539241,-163.39474068,0.0004,2]
[421050138,1776951539251,-5224.41757312,0.0004,7]
[421050139,1776951539260,-1836.32538,0.0004,10]
[421050140,1776951539270,-30737.16506489,0.0004,2]
[421050141,1776951539279,-4153.4877149,0.0004,2]
[421050142,1776951539288,-10802.55682158,0.0004,2]
[421050143,1776951539298,-1100.0,0.0004,15]
[421050144,1776951539307,-2000.0,0.0004,2]
[421050145,1776951539316,-475.17,0.0004,7]
[421050146,1776951539326,-513.47257053,0.0004,2]
[421050147,1776951539335,-818.56252644,0.0004,3]
[421050148,1776951539344,-4556.98615099,0.0004,30]
[421050149,1776951539353,-156945.10256798,0.0004,30]
[421050150,1776951539363,-10993.0,0.0004,30]
[421050151,1776951539372,-3000.0,0.0004,30]
[421050152,1776951539381,-477.12749073,0.0004,30]
[421050153,1776951539390,-4000.71419158,0.0004,30]
[421050154,1776951539399,-216.13703598,0.0004,30]
[421050155,1776951539408,-189.56299459,0.0004,90]
[421050156,1776951539417,-835.95004404,0.0004,60]
[421050157,1776951539426,-553.20970711,0.0004,30]
[421050158,1776951539435,-540.0,0.0004,30]
[421050159,1776951539445,-1185.44811909,0.0004,60]
[421050160,1776951539454,-1894.27184722,0.0004,30]
[421050161,1776951539463,-1036.96924904,0.0004,30]
[421050162,1776951539472,-798.98932161,0.0004,60]
[421050163,1776951539481,-657.35529291,0.0004,30]
[421050164,1776951539491,-826.64040007,0.0004,30]
[421050165,1776951539500,-171000.0,0.0004,90]
[421050166,1776951539510,-2000.0,0.0004,60]
[421050167,1776951539519,-463.0,0.0004,60]
[421050168,1776951539528,-17000.0,0.0004,10]
[421050169,1776951539537,-25215.1583855,0.0004,30]
[421050170,1776951539546,-354.00080246,0.0004,10]
[421050171,1776951539555,-150.0,0.0004,7]
[421050172,1776951539565,-439.2180994,0.0004,30]
[421050173,1776951539574,-317.0,0.0004,14]
[421050174,1776951539584,-8000.0,0.0004,30]
[421050175,1776951539593,-600.0,0.0004,90]
[421050176,1776951539603,-22253.88787287,0.0004,30]
[421050177,1776951539612,-400.4,0.0004,20]
[421050178,1776951539621,-2000.0,0.0004,60]
[421050179,1776951539631,-554.5905368,0.0004,30]
[421050180,1776951539640,-10005.0,0.0004,60]
[421050181,1776951539650,-1000.0,0.0004,30]
[421050182,1776951539659,-1000.0,0.0004,30]
[421050183,1776951539668,-1000.0,0.0004,30]
[421050184,1776951539677,-9802.0,0.0004,7]
[421050185,1776951539687,-3441.53824121,0.0004,60]
[421050186,1776951539696,-1000.0,0.0004,30]
[421050187,1776951539706,-24012.18697841,0.0004,2]
[421050188,1776951539715,-2023.0,0.0004,30]
[421050189,1776951539724,-976.47665333,0.0004,20]
[421050190,1776951539734,-1699.25452074,0.0004,30]
[421050191,1776951539743,-3000.0,0.0004,100]
[421050192,1776951539752,-2196.32846703,0.0004,85]
[421050193,1776951539761,-2500.0,0.0004,60]
[421050194,1776951539771,-344.06261321,0.0004,60]
[421050195,1776951539780,-200.35367126,0.0004,2]
[421050196,1776951539789,-5422.15500497,0.0004,7]
[421050197,1776951539799,-1500.0,0.0004,7]
[421050198,1776951539809,-39407.40252176,0.0004,10]
[421050199,1776951539819,-5262.43219876,0.0004,6]
[421050200,1776951539829,-153223.03298984,0.0004,30]
[421050201,1776951539839,-504.266,0.0004,15]
[421050202,1776951539849,-20610.0,0.0004,90]
[421050203,1776951539859,-20000.0,0.0004,30]
[421050204,1776951539869,-157.27562754,0.0004,30]
[421050205,1776951539878,-1266.66,0.0004,60]
[421050206,1776951539888,-948.0,0.0004,30]
[421050207,1776951539897,-2220.75,0.0004,60]
[421050208,1776951539907,-692.38,0.0004,60]
[421050209,1776951539916,-186.34,0.0004,5]
[421050210,1776951539926,-185182.39007869,0.0004,10]
[421050211,1776951539937,-800700.0,0.0004,14]
[421050212,1776951539946,-1578.24495742,0.0004,10]
[421050213,1776951539956,-1000.0,0.0004,2]
[421050214,1776951539965,-947.78820146,0.0004,30]
[421050215,1776951539975,-947.78820146,0.0004,30]
[421050216,1776951539984,-947.78820146,0.0004,30]
[421050217,1776951539993,-947.78820146,0.0004,30]
[421050218,1776951540003,-947.78820146,0.0004,30]
[421050219,1776951540012,-947.78820146,0.0004,30]
[421050220,1776951540022,-947.78820146,0.0004,30]
[421050221,1776951540032,-947.78820146,0.0004,30]
[421050222,1776951540042,-947.78820146,0.0004,30]
[421050223,1776951540052,-947.78820146,0.0004,30]
[421050224,1776951540062,-947.78820146,0.0004,30]
[421050225,1776951540071,-947.78820146,0.0004,30]
[421050226,1776951540081,-5262.43219876,0.0004,9]
[421050227,1776951540091,-10000.0,0.0004,30]
[421050228,1776951540100,-80556.80688451,0.0004,120]
[421050229,1776951540110,-10887.42917262,0.0004,120]
[421050230,1776951540121,-150.0,0.0004,120]
[421050231,1776951540131,-264.97,0.0004001,90]
[421050232,1776951540140,-286.12101266,0.00040034,30]
[421050233,1776951540150,-482.87121667,0.00040034,30]
[421050234,1776951540160,-150.0,0.00040095,120]
[421050235,1776951540170,-150.0,0.00040095,120]
[421050236,1776951540179,-279.29,0.0004011,90]
[421050237,1776951540189,-150.0,0.00040165,2]
[421050238,1776951540199,-1654.9,0.000402,60]
[421050239,1776951540208,-1462.92,0.000402,30]
[421050240,1776951540218,-1462.92,0.000402,60]
[421050241,1776951540228,-1753.199,0.000402,60]
[421050242,1776951540238,-1753.2,0.000402,30]
[421050243,1776951540248,-570.27,0.00040255,7]
[421050244,1776951540258,-185.82,0.00040256,7]
[421050245,1776951540267,-638.3,0.00040256,7]
[421050246,1776951540277,-568.04,0.00040257,7]
[421050247,1776951540286,-183.38,0.00040257,7]
[421050248,1776951540296,-392.56,0.00040257,7]
[421050249,1776951540306,-183.4,0.00040257,7]
[421050250,1776951540316,-638.27,0.00040257,7]
[421050251,1776951540326,-183.4,0.00040261,7]
[421050252,1776951540335,-157.14763931,0.00040265,2]
[421050253,1776951540345,-1000.0,0.000403,60]
[421050254,1776951540355,-392.55,0.00040304,7]
[421050255,1776951540364,-183.38,0.00040304,7]
[421050256,1776951540374,-321.88924582,0.00040308,30]
[421050257,1776951540384,-286.12101266,0.00040308,30]
[421050258,1776951540394,-482.87121667,0.00040308,30]
[421050259,1776951540404,-1169.38713615,0.00040411,30]
[421050260,1776951540414,-941.47194566,0.00040411,30]
[421050261,1776951540424,-727.62105068,0.00040411,30]
[421050262,1776951540434,-571.43735099,0.00040411,30]
[421050263,1776951540444,-568.4442914,0.00040411,30]
[421050264,1776951540454,-9332.83830083,0.00040441,80]
[421050265,1776951540463,-3000.0,0.00040443,2]
[421050266,1776951540473,-250.0,0.00040491,95]
[421050267,1776951540483,-5000.0,0.000405,21]
[421050268,1776951540493,-1000.0,0.000405,90]
[421050269,1776951540503,-1000.0,0.000405,60]
[421050270,1776951540512,-1000.0,0.000405,30]
[421050271,1776951540522,-2881.0,0.000405,60]
[421050272,1776951540532,-1500.0,0.000405,30]
[421050273,1776951540542,-151.0,0.000405,60]
[421050274,1776951540552,-150.0,0.000405,120]
[421050275,1776951540563,-2000.0,0.000405,60]
[421050276,1776951540573,-157.14763931,0.00040539,2]
[421050277,1776951540583,-286.12101266,0.00040582,30]
[421050278,1776951540592,-482.87121667,0.00040582,30]
[421050279,1776951540603,-1000.0,0.000406,60]
[421050280,1776951540613,-599433.76861256,0.000407,6]
[421050281,1776951540624,-50203.2965,0.00040767,30]
[421050282,1776951540634,-505.0,0.00040782,25]
[421050283,1776951540644,-157.14763931,0.00040813,2]
[421050284,1776951540654,-156.88277015,0.00040822,60]
[421050285,1776951540664,-150.0,0.00040834,2]
[421050286,1776951540674,-286.12101266,0.00040856,30]
[421050287,1776951540683,-482.87121667,0.00040856,30]
[421050288,1776951540693,-480.0,0.000409,15]
[421050289,1776951540703,-195.0,0.000409,60]
[421050290,1776951540713,-208.0,0.0004093,30]
[421050291,1776951540723,-396401.0,0.0004095,60]
[421050292,1776951540733,-222.409647,0.00040965,53]
[421050293,1776951540743,-360.56952428,0.00040987,80]
[421050294,1776951540752,-100000.0,0.00041,35]
[421050295,1776951540763,-5000.0,0.00041,21]
[421050296,1776951540772,-438.40822433,0.00041,5]
[421050297,1776951540782,-500.0,0.00041,45]
[421050298,1776951540791,-500.0,0.00041,45]
[421050299,1776951540801,-500.0,0.00041,45]
[421050300,1776951540811,-500.0,0.00041,45]
[421050301,1776951540821,-500.0,0.00041,45]
[421050302,1776951540831,-500.0,0.00041,45]
[421050303,1776951540842,-500.0,0.00041,45]
[421050304,1776951540852,-500.0,0.00041,45]
[421050305,1776951540862,-500.0,0.00041,45]
[421050306,1776951540872,-500.0,0.00041,45]
[421050307,1776951540882,-500.0,0.00041,45]
[421050308,1776951540892,-1814.0426565,0.00041,30]
[421050309,1776951540902,-500.0,0.00041,45]
[421050310,1776951540912,-500.0,0.00041,45]
[421050311,1776951540922,-500.0,0.00041,45]
[421050312,1776951540932,-500.0,0.00041,45]
[421050313,1776951540942,-500.0,0.00041,45]
[421050314,1776951540953,-500.0,0.00041,45]
[421050315,1776951540963,-500.0,0.00041,45]
[421050316,1776951540973,-500.0,0.00041,45]
[421050317,1776951540983,-500.0,0.00041,45]
[421050318,1776951540993,-500.0,0.00041,45]
[421050319,1776951541002,-500.0,0.00041,45]
[421050320,1776951541011,-500.0,0.00041,45]
[421050321,1776951541022,-500.0,0.00041,45]
[421050322,1776951541033,-500.0,0.00041,45]
[421050323,1776951541042,-500.0,0.00041,45]
[421050324,1776951541053,-2000.0,0.00041,60]
[421050325,1776951541063,-350.0,0.00041,7]
[421050326,1776951541074,-576.88617917,0.00041,30]
[421050327,1776951541084,-8000.0,0.00041,30]
[421050328,1776951541094,-3102.34948791,0.00041,30]
[421050329,1776951541103,-10000.0,0.00041,30]
[421050330,1776951541113,-1000.0,0.00041,30]
[421050331,1776951541123,-480.0,0.00041,15]
[421050332,1776951541132,-480.0,0.00041,15]
[421050333,1776951541142,-480.0,0.00041,15]
[421050334,1776951541152,-480.0,0.00041,15]
[421050335,1776951541162,-480.0,0.00041,15]
[421050336,1776951541171,-10000.0,0.00041,30]
[421050337,1776951541181,-4000.0,0.00041,31]
[421050338,1776951541191,-614.56686721,0.00041,30]
[421050339,1776951541200,-215333.51,0.00041,10]
[421050340,1776951541210,-161.0,0.00041,30]
[421050341,1776951541220,-57605.34641265,0.00041,5]
[421050342,1776951541231,-30000.0,0.00041,30]
[421050343,1776951541241,-594.32685241,0.00041,30]
[421050344,1776951541250,-1266.66,0.00041,75]
[421050345,1776951541260,-2220.75,0.00041,75]
[421050346,1776951541269,-692.38,0.00041,75]
[421050347,1776951541279,-47017.6769257,0.00041,30]
[421050348,1776951541289,-3660.47607237,0.00041,2]
[421050349,1776951541299,-935.0,0.00041,14]
[421050350,1776951541308,-950.0,0.00041,2]
[421050351,1776951541320,-150.0,0.00041,120]
[421050352,1776951541330,-1103.0,0.00041041,30]
[421050353,1776951541339,-272.0,0.00041083,30]
[421050354,1776951541349,-183.31,0.00041083,30]
[421050355,1776951541358,-392.67,0.00041083,30]
[421050356,1776951541368,-638.23,0.00041083,30]
[421050357,1776951541378,-157.14763931,0.00041087,2]
[421050358,1776951541387,-7237.29612467,0.00041095,5]
[421050359,1776951541397,-1500.0,0.00041095,30]
[421050360,1776951541406,-450.14559957,0.00041096,10]
[421050361,1776951541416,-510.89942061,0.00041096,10]
[421050362,1776951541425,-576.21517872,0.00041096,10]
[421050363,1776951541435,-586.47446609,0.00041096,10]
[421050364,1776951541444,-2042.0919838,0.00041096,10]
[421050365,1776951541455,-800.0,0.00041096,30]
[421050366,1776951541464,-800.0,0.00041096,30]
[421050367,1776951541474,-800.0,0.00041096,30]
[421050368,1776951541483,-800.0,0.00041096,30]
[421050369,1776951541492,-800.0,0.00041096,30]
[421050370,1776951541502,-800.0,0.00041096,30]
[421050371,1776951541512,-800.0,0.00041096,30]
[421050372,1776951541521,-800.0,0.00041096,30]
[421050373,1776951541532,-800.0,0.00041096,30]
[421050374,1776951541542,-781.0,0.00041096,30]
[421050375,1776951541552,-1000.0,0.00041096,60]
[421050376,1776951541562,-1000.0,0.00041096,60]
[421050377,1776951541572,-1000.0,0.00041096,60]
[421050378,1776951541582,-1000.0,0.00041096,60]
[421050379,1776951541591,-1000.0,0.00041096,60]
[421050380,1776951541600,-1000.0,0.00041096,60]
[421050381,1776951541610,-1000.0,0.00041096,60]
[421050382,1776951541619,-1000.0,0.00041096,60]
[421050383,1776951541628,-1000.0,0.00041096,60]
[421050384,1776951541637,-1000.0,0.00041096,60]
[421050385,1776951541646,-1000.0,0.00041096,60]
[421050386,1776951541656,-1000.0,0.00041096,100]
[421050387,1776951541665,-161.53,0.00041096,30]
[421050388,1776951541674,-480.0,0.000411,15]
[421050389,1776951541683,-480.0,0.000411,15]
[421050390,1776951541692,-581.77,0.000411,60]
[421050391,1776951541702,-1000.0,0.000411,7]
[421050392,1776951541711,-284.1957521,0.000411,60]
[421050393,1776951541721,-516.0685,0.000411,60]
[421050394,1776951541731,-1489.41,0.000411,30]
[421050395,1776951541740,-286.12101266,0.0004113,30]
[421050396,1776951541750,-482.87121667,0.0004113,30]
[421050397,1776951541759,-1500.0,0.0004119,21]
[421050398,1776951541769,-480.0,0.000412,15]
[421050399,1776951541778,-480.0,0.000413,15]
[421050400,1776951541788,-480.0,0.000413,15]
[421050401,1776951541797,-2463240.81142314,0.00041316,30]
[421050402,1776951541807,-150.0,0.00041339,90]
[421050403,1776951541816,-8545.96811257,0.00041356,108]
[421050404,1776951541826,-157.14763931,0.00041361,2]
[421050405,1776951541835,-1500.0,0.00041369,40]
[421050406,1776951541844,-480.0,0.000414,15]
[421050407,1776951541854,-1489.413,0.000414,60]
[421050408,1776951541863,-1489.41,0.000414,60]
[421050409,1776951541873,-1316.625,0.000414,60]
[421050410,1776951541882,-3000.0,0.00041443,2]
[421050411,1776951541892,-430570.5062,0.00041444,7]
[421050412,1776951541902,-369.88280334,0.00041464,80]
[421050413,1776951541912,-5000.0,0.000415,21]
[421050414,1776951541921,-500.0,0.000415,45]
[421050415,1776951541931,-500.0,0.000415,45]
[421050416,1776951541940,-500.0,0.000415,45]
[421050417,1776951541950,-500.0,0.000415,45]
[421050418,1776951542086,-500.0,0.000415,45]
[421050419,1776951542102,-500.0,0.000415,45]
[421050420,1776951542113,-500.0,0.000415,45]
[421050421,1776951542123,-500.0,0.000415,45]
[421050422,1776951542132,-500.0,0.000415,45]
[421050423,1776951542142,-500.0,0.000415,45]
[421050424,1776951542152,-500.0,0.000415,45]
[421050425,1776951542161,-500.0,0.000415,45]
[421050426,1776951542171,-500.0,0.000415,45]
[421050427,1776951542181,-500.0,0.000415,45]
[421050428,1776951542191,-500.0,0.000415,45]
[421050429,1776951542200,-500.0,0.000415,45]
[421050430,1776951542210,-500.0,0.000415,45]
[421050431,1776951542220,-500.0,0.000415,45]
[421050432,1776951542229,-500.0,0.000415,45]
[421050433,1776951542240,-500.0,0.000415,45]
[421050434,1776951542249,-500.0,0.000415,45]
[421050435,1776951542259,-500.0,0.000415,45]
[421050436,1776951542269,-500.0,0.000415,45]
[421050437,1776951542278,-500.0,0.000415,45]
[421050438,1776951542288,-500.0,0.000415,45]
[421050439,1776951542297,-1000.0,0.000415,90]
[421050440,1776951542307,-1000.0,0.000415,60]
[421050441,1776951542317,-1000.0,0.000415,65]
[421050442,1776951542327,-1000.0,0.000415,75]
[421050443,1776951542337,-1000.0,0.000415,85]
[421050444,1776951542347,-1000.0,0.000415,95]
[421050445,1776951542356,-1000.0,0.000415,105]
[421050446,1776951542367,-1000.0,0.000415,30]
[421050447,1776951542377,-1000.0,0.000415,32]
[421050448,1776951542386,-2000.0,0.000415,60]
[421050449,1776951542396,-151.0,0.000415,60]
[421050450,1776951542406,-150.0,0.000415,120]
[421050451,1776951542415,-300.0,0.00041511,2]
[421050452,1776951542425,-300.0,0.00041511,2]
[421050453,1776951542435,-301.06,0.00041511,2]
[421050454,1776951542445,-300.0,0.00041543,2]
[421050455,1776951542455,-300.0,0.00041543,2]
[421050456,1776951542465,-300.0,0.00041543,2]
[421050457,1776951542475,-299.13,0.00041543,2]
[421050458,1776951542485,-480.0,0.000416,15]
[421050459,1776951542495,-480.0,0.000416,15]
[421050460,1776951542505,-35275.0,0.000416,30]
[421050461,1776951542515,-520.66071083,0.000416,30]
[421050462,1776951542525,-505.0,0.00041635,26]
[421050463,1776951542535,-157.14763931,0.00041635,2]